bitfinex/quotes_ETHUSD_20220106
["timestamp","ask_amount","ask_price","bid_price","bid_amount"]
[1641468904976,1.51087482,3349.8,3349.0,0.00397896]
[1641468905874,2.02495606,3349.5,3348.8,1.80619726]
[1641468906075,2.02495606,3349.5,3349.1,1.20141872]
[1641468906275,2.02495606,3349.5,3348.9,0.45244739]
[1641468906476,2.02495606,3349.5,3349.2,0.00284212]
[1641468906675,2.02495606,3349.5,3349.0,0.00397896]
[1641468907076,2.02495606,3349.5,3349.2,0.00247912]
[1641468907477,2.77161606,3349.5,3349.3,0.00227369]
[1641468908433,2.77161606,3349.5,3349.4,0.00246419]
[1641468909030,2.02495606,3349.5,3349.4,0.00246419]
[1641468909631,4.62495606,3349.5,3349.4,0.00246419]
[1641468909831,9.67495606,3349.5,3349.4,0.00246419]
[1641468910033,11.72160606,3349.5,3349.4,0.00246419]
[1641468910437,12.15160606,3349.5,3349.4,0.00246419]
[1641468910836,12.35,3349.4,3349.3,7.369e-05]
[1641468911035,13.78,3349.4,3349.3,7.369e-05]
[1641468911233,13.78,3349.4,3348.1,2.1861843]
[1641468911234,0.7470096,3348.7,3348.3,0.00575793]
[1641468911436,0.43,3348.6,3348.3,0.00575793]
[1641468911689,0.43,3348.6,3347.9,0.00803162]
[1641468911891,1.43,3348.6,3347.9,0.00803162]
[1641468912091,0.74699,3348.2,3347.9,0.00803162]
[1641468912292,1.21607855,3348.2,3347.9,0.00803162]
[1641468912794,1.21607855,3348.2,3347.4,2.17765865]
[1641468912795,4.90328828,3348.1,3347.5,0.01030532]
[1641468912995,0.43,3348.0,3347.5,0.01030532]
[1641468913193,0.74722,3347.8,3347.5,0.01030532]
[1641468913393,12.35,3347.6,3347.4,6.397e-05]
[1641468913592,12.35,3347.6,3347.1,4.18274987]
[1641468913593,0.43,3347.5,3347.1,4.18274987]
[1641468913793,0.78638904,3347.4,3347.0,6.17]
[1641468913992,0.43,3347.3,3347.2,0.00170527]
[1641468914492,2.39939599,3347.3,3347.2,0.00170527]
[1641468914693,4.29419599,3347.3,3347.2,0.00170527]
[1641468914895,5.78888599,3347.3,3347.2,0.00170527]
[1641468915534,5.78888599,3347.3,3347.0,9.732e-05]
[1641468915730,5.78888599,3347.3,3346.1,2.1861843]
[1641468915731,6.2718,3347.2,3346.1,2.1861843]
[1641468915929,0.7948,3347.0,3346.1,2.1861843]
[1641468916129,0.7948,3346.3,3346.2,0.00568423]
[1641468916331,1.8243,3346.3,3346.2,0.00568423]
[1641468916532,3.48181101,3346.3,3346.1,0.00625265]
[1641468916730,4.48181101,3346.3,3346.1,0.00625265]
[1641468916929,12.35,3346.2,3346.0,3.11847265]
[1641468917132,2.2248,3346.1,3346.0,3.11847265]
[1641468917529,0.7948,3345.7,3345.4,0.6765772]
[1641468917729,3.90433166,3345.6,3345.4,0.6765772]
[1641468918136,4.90433166,3345.6,3345.4,0.6765772]
[1641468918630,4.90433166,3345.6,3345.5,8.863751]
[1641468919087,7.50433166,3345.6,3345.5,8.86651399]
[1641468920279,7.50433166,3345.6,3345.5,2.69651399]
[1641468924833,7.50433166,3345.6,3345.4,0.6765772]
[1641468924834,7.50433166,3345.6,3345.4,7.72e-05]
[1641468924836,13.1448,3345.5,3345.4,7.72e-05]
[1641468925040,0.7948,3345.3,3344.8,8.138e-05]
[1641468925236,17.26871749,3345.5,3344.8,8.138e-05]
[1641468925237,13.89267,3344.9,3344.8,8.138e-05]
[1641468925436,14.32267,3344.9,3344.8,8.138e-05]
[1641468925636,15.32267,3344.9,3344.8,0.00747089]
[1641468925838,17.24993989,3344.9,3344.8,0.00747089]
[1641468926436,0.7948,3343.9,3343.4,4.2847772]
[1641468926718,0.7948,3343.9,3343.4,0.6765772]
[1641468926905,0.7948,3343.9,3343.5,0.0073895]
[1641468927307,2.59580578,3343.6,3343.5,0.0073895]
[1641468928209,0.7948,3344.0,3343.5,0.0073895]
[1641468928411,0.81313822,3344.1,3343.5,0.0073895]
[1641468928412,3.3948,3343.6,3343.5,0.0073895]
[1641468929210,3.3948,3343.6,3343.5,1.89475584]
[1641468929507,3.3948,3343.6,3343.5,1.89750982]
[1641468930939,3.3948,3343.6,3343.5,0.01014348]
[1641468932832,5.43600899,3343.6,3343.5,0.01014348]
[1641468935380,6.29940899,3343.6,3343.5,0.01014348]
[1641468935582,7.29940899,3343.6,3343.5,0.01014348]
[1641468935782,7.72940899,3343.6,3343.5,0.01014348]
[1641468936085,8.54865638,3343.6,3343.5,0.01014348]
[1641468937582,8.54865638,3343.6,3343.4,0.6765772]
[1641468937583,13.0448,3343.5,3343.4,0.6765772]
[1641468937835,13.0448,3343.5,3342.8,6.21630864]
[1641468937836,0.7948,3343.3,3342.8,6.21630864]
[1641468938038,13.89314,3342.9,3342.8,6.21630864]
[1641468938236,13.89314,3342.9,3341.9,7.7885]
[1641468938237,0.7948,3342.7,3341.9,3.8716]
[1641468938440,9.55,3342.8,3341.6,3.9763]
[1641468938441,0.7948,3342.5,3341.6,3.9763]
[1641468938743,0.7948,3342.5,3342.0,0.00852636]
[1641468938744,1.2248,3342.4,3342.0,0.00852636]
[1641468939339,0.7948,3342.1,3342.0,0.00852636]
[1641468939542,0.7948,3342.1,3341.9,0.00909478]
[1641468939543,1.2248,3342.1,3341.9,0.00909478]
[1641468940039,1.2248,3342.1,3342.0,0.00267171]
[1641468940639,6.94918395,3342.1,3342.0,0.00267171]
[1641468941044,7.94918395,3342.1,3342.0,0.00267171]
[1641468941250,3.89918395,3342.1,3342.0,0.00267171]
[1641468943700,2.2248,3342.1,3342.0,0.00267171]
[1641468943904,0.7948,3342.1,3342.0,0.00267171]
[1641468944602,0.43,3343.0,3342.0,11.10267171]
[1641468944802,1.97823518,3342.9,3342.5,1.91041636]
[1641468945102,1.97823518,3342.9,3342.6,0.00511582]
[1641468945535,1.97823518,3342.9,3342.1,0.00795793]
[1641468945935,1.96627718,3342.9,3342.1,0.00795793]
[1641468946335,0.43,3343.0,3342.4,2.06632809]
[1641468946540,6.67237,3343.9,3343.4,1.31540566]
[1641468946541,0.4682484,3343.9,3343.4,1.31540566]
[1641468946739,0.93062,3344.0,3342.7,0.01252736]
[1641468946740,0.1826,3344.0,3342.7,0.01252736]
[1641468947035,0.00113684,3343.7,3342.7,3.90097269]
[1641468947235,0.00113684,3343.7,3342.8,0.00397897]
[1641468947434,2.23628064,3343.4,3342.8,0.00397897]
[1641468947638,2.23628064,3343.4,3342.8,0.22833897]
[1641468947837,2.23628064,3343.4,3342.8,0.00397897]
[1641468949385,4.83628064,3343.4,3342.8,0.00397897]
[1641468950601,4.83628064,3343.4,3342.9,0.00251527]
[1641468950787,4.83628064,3343.4,3343.2,0.7479634]
[1641468950988,4.83628064,3343.4,3343.0,0.00284212]
[1641468951188,4.83628064,3343.4,3343.3,0.00113685]
[1641468951390,4.83628064,3343.4,3343.0,0.00284212]
[1641468952189,5.58432064,3343.4,3343.0,0.00284212]
[1641468952391,1.0,3343.3,3343.0,0.00284212]
[1641468952588,0.43,3343.2,3343.0,0.00284212]
[1641468953638,1.92642,3343.2,3343.0,0.00284212]
[1641468954436,1.82642,3343.2,3343.0,0.00284212]
[1641468954634,5.5982,3343.1,3343.0,0.00284212]
[1641468954836,6.0282,3343.1,3343.0,0.00284212]
[1641468955034,7.0282,3343.1,3343.0,0.00284212]
[1641468956135,1.1782,3343.1,3343.0,0.00284212]
[1641468956577,0.43,3343.1,3343.0,0.00284212]
[1641468957576,0.43,3343.1,3343.0,2.90512604]
[1641468957778,0.43,3343.1,3343.0,0.00284212]
[1641468960830,0.43,3343.1,3342.9,0.74840149]
[1641468961025,0.43,3343.1,3342.9,0.00251527]
[1641468961225,0.43,3343.1,3342.8,1.4959497]
[1641468961427,2.6,3343.4,3342.8,2.94001307]
[1641468961627,2.6,3343.4,3342.9,1.10059204]
[1641468961825,0.00170527,3343.3,3342.9,1.10059204]
[1641468962133,0.00113685,3343.2,3342.7,1.4960169]
[1641468962328,1.62677809,3343.1,3342.7,1.4960169]
[1641468962528,1.62677809,3343.1,3342.8,0.00113685]
[1641468964485,0.00170527,3343.3,3342.8,0.00113685]
[1641468964887,0.00113685,3343.2,3342.8,0.00113685]
[1641468965288,0.43,3343.2,3342.8,0.00113685]
[1641468965486,0.50118739,3343.2,3342.8,0.00113685]
[1641468965687,0.50118739,3343.2,3342.3,0.00397897]
[1641468965890,0.74824,3342.5,3342.3,0.00397897]
[1641468966187,0.43,3342.4,3342.3,0.00397897]
[1641468966387,2.15337956,3342.4,3342.3,0.00397897]
[1641468966587,2.15337956,3342.4,3342.1,0.00511581]
[1641468966788,0.74828,3342.3,3342.1,0.00511581]
[1641468966989,1.17828,3342.3,3342.1,0.00511581]
[1641468967588,1.15828,3342.3,3342.1,0.00511581]
[1641468968936,0.43,3342.3,3342.1,0.00511581]
[1641468970337,3.03,3342.3,3342.1,0.00511581]
[1641468970539,2.6,3342.3,3342.1,0.00511581]
[1641468970936,0.0001,3342.3,3342.2,2.2440359]
[1641468971137,3.6012749,3343.2,3342.2,14.5940359]
[1641468971343,3.6012749,3343.2,3342.6,1.31065769]
[1641468971595,0.43170527,3343.3,3342.6,1.31065769]
[1641468971781,0.43170527,3343.3,3342.7,0.00170527]
[1641468971980,0.00113685,3343.2,3342.7,0.00424295]
[1641468972181,1.59746203,3342.9,3342.7,0.00424295]
[1641468972783,1.59746203,3342.9,3342.7,0.22543788]
[1641468973388,1.59746203,3342.9,3342.7,0.00424295]
[1641468978134,1.59746203,3342.9,3342.8,0.22548068]
[1641468978937,4.73213879,3342.9,3342.8,0.22548068]
[1641468979383,5.03213879,3342.9,3342.8,0.22548068]
[1641468979886,4.73213879,3342.9,3342.8,0.22548068]
[1641468980382,4.73213879,3342.9,3342.7,0.75233495]
[1641468981584,9.18467676,3342.8,3342.7,0.00424295]
[1641468981783,3.88285676,3342.8,3342.7,0.00424295]
[1641468982188,13.26285676,3342.8,3342.7,0.23014749]
[1641468982386,13.56285676,3342.8,3342.7,0.23014749]
[1641468982839,13.56285676,3342.8,3342.7,0.00424295]
[1641468983836,13.63404415,3342.8,3342.7,0.00424295]
[1641468984039,15.14815043,3342.8,3342.7,0.00424295]
[1641468985039,18.03404415,3342.8,3342.7,0.00424295]
[1641468985441,9.4,3342.7,3342.0,0.111294]
[1641468985644,12.35,3342.0,3341.4,2.21608829]
[1641468985842,5.377,3341.8,3341.4,2.09718829]
[1641468986041,12.35,3341.6,3341.2,1.5142121]
[1641468986242,0.73,3341.5,3341.2,1.5142121]
[1641468986441,0.73,3341.5,3341.3,0.00795793]
[1641468986709,18.47567,3341.4,3341.3,0.00795793]
[1641468986906,18.90567,3341.4,3341.3,0.00795793]
[1641468987109,8.9,3341.3,3341.0,1.99656557]
[1641468987308,8.9,3341.3,3340.0,5.95262896]
[1641468987309,12.36228824,3341.1,3340.0,5.95262896]
[1641468987515,5.807,3341.0,3340.0,0.97019352]
[1641468987707,0.74875,3340.2,3340.0,0.97019352]
[1641468987909,0.43,3340.1,3340.0,0.97019352]
[1641468988308,0.43,3340.1,3340.0,0.00738951]
[1641468988510,0.43,3340.1,3340.0,1.84479914]
[1641468988713,0.43,3340.1,3340.0,1.83740963]
[1641468989108,2.22871997,3340.5,3340.0,1.83740963]
[1641468989308,2.52871997,3340.5,3340.0,1.83740963]
[1641468989507,2.52871997,3340.5,3340.1,0.00682108]
[1641468989909,2.52871997,3340.5,3340.3,0.7485907]
[1641468990332,2.52871997,3340.5,3340.4,0.00511581]
[1641468991435,12.35,3340.4,3339.3,0.6765772]
[1641468991635,0.42255841,3340.3,3339.3,0.6765772]
[1641468991838,1.42255841,3340.3,3339.4,0.00511581]
[1641468992139,0.98268066,3339.8,3339.4,0.00511581]
[1641468992336,0.74902,3339.6,3339.4,0.00511581]
[1641468992535,9.85097015,3339.5,3339.4,0.00511581]
[1641468992737,2.55097015,3339.5,3339.4,0.00511581]
[1641468993137,1.43,3339.5,3339.4,0.00511581]
[1641468993337,0.245,3339.5,3339.4,0.00511581]
[1641468993938,0.03066516,3340.7,3339.4,0.00511581]
[1641468993939,0.43,3339.9,3339.4,0.00511581]
[1641468994388,2.21679958,3339.9,3339.5,2.24512306]
[1641468994689,0.43,3339.9,3339.6,0.00397896]
[1641468996387,1.74326338,3339.8,3339.6,0.00397896]
[1641468998036,11.58,3339.7,3339.6,0.00397896]
[1641468998835,4.73,3339.7,3339.6,0.00397896]
[1641468999035,0.43,3339.7,3339.6,0.00397896]
[1641468999436,0.43,3339.7,3339.5,0.00454738]
[1641469000439,0.43,3339.7,3339.6,1.33134299]
[1641469000839,0.43,3339.7,3339.6,1.33532195]
[1641469001040,0.43,3339.7,3339.6,0.00397896]
[1641469001440,0.43,3339.7,3339.5,0.00454738]
[1641469002283,0.43,3339.7,3339.5,0.75328888]
[1641469002684,0.43,3339.7,3339.6,0.00397896]
[1641469003284,0.00113685,3340.5,3339.6,12.35397896]
[1641469003486,0.00113685,3340.5,3340.3,0.7485516]
[1641469003889,0.00113685,3340.5,3340.4,15.41878375]
[1641469004085,1.10635533,3341.3,3340.4,16.84545321]
[1641469004287,1.07315533,3341.3,3340.4,16.84545321]
[1641469004485,0.00397897,3341.2,3340.5,1.81740962]
[1641469004687,0.00397897,3341.2,3340.7,2.2447539]
[1641469004886,2.00375797,3342.1,3340.8,2.88792021]
[1641469004887,0.00341054,3341.1,3340.8,2.88792021]
[1641469005361,0.00284212,3341.0,3340.8,2.88792021]
[1641469005845,0.0022737,3340.9,3340.8,15.39495036]
[1641469006245,0.0022737,3340.9,3340.8,19.04945036]
[1641469006450,0.0022737,3340.9,3340.8,6.69945036]
[1641469006648,0.0022737,3340.9,3340.8,7.89537189]
[1641469007048,0.0022737,3340.9,3340.8,5.59872273]
[1641469007647,0.0022737,3340.9,3340.8,10.54156736]
[1641469008146,0.0022737,3340.9,3340.8,7.63123835]
[1641469008547,0.43,3342.2,3340.8,7.63123835]
[1641469008548,0.43,3342.2,3341.0,0.74825]
[1641469008747,0.43,3342.2,3341.9,0.7481914]
[1641469008951,0.00682108,3342.1,3342.0,2.13229615]
[1641469009183,0.43,3342.2,3342.0,2.13229615]
[1641469009184,0.28682108,3342.2,3342.0,2.13229615]
[1641469010285,2.49644,3343.0,3342.0,3.62851795]
[1641469010286,3.38165872,3342.1,3342.0,3.62851795]
[1641469010490,5.872e-05,3342.1,3342.0,15.97851795]
[1641469010686,2.00375797,3343.0,3342.1,12.35]
[1641469010687,1.73709565,3343.0,3342.1,12.35]
[1641469010887,4.72759837,3343.2,3342.8,0.01230691]
[1641469011286,0.00170527,3343.1,3342.8,0.98437691]
[1641469011493,0.00170527,3343.1,3342.8,0.22433]
[1641469011686,0.00113685,3343.0,3342.9,1.64343923]
[1641469012691,0.00113685,3343.0,3342.9,7.99343923]
[1641469013136,0.00113685,3343.0,3342.9,1.64343923]
[1641469013330,0.00113685,3343.0,3342.9,5.42013923]
[1641469013533,0.00113685,3343.0,3342.9,1.64343923]
[1641469013734,0.00113685,3343.0,3342.9,7.89901642]
[1641469014334,0.00113685,3343.0,3342.9,7.9012719]
[1641469014935,0.00113685,3343.0,3342.9,4.6012719]
[1641469015933,0.00113685,3343.0,3342.9,1.64569471]
[1641469016134,0.00113685,3343.0,3342.9,2.64569471]
[1641469016987,0.00113685,3343.0,3342.9,0.00225548]
[1641469017685,7.80113685,3343.0,3342.9,0.00225548]
[1641469017890,0.00113685,3343.0,3342.9,0.00225548]
[1641469018087,2.03715357,3343.0,3342.9,0.00225548]
[1641469018688,6.18715357,3343.0,3342.9,0.00225548]
[1641469018985,2.03715357,3343.0,3342.9,0.00225548]
[1641469019188,0.00113685,3343.0,3342.9,0.00225548]
[1641469020339,0.00113685,3343.0,3342.9,1.87832437]
[1641469020740,0.00113685,3343.0,3342.9,0.00225548]
[1641469028349,0.07232424,3343.0,3342.9,0.00225548]
[1641469028551,10.07232424,3343.0,3342.9,0.00225548]
[1641469028752,10.50232424,3343.0,3342.9,0.00225548]
[1641469029151,11.50232424,3343.0,3342.9,0.00225548]
[1641469029551,10.2,3342.9,3342.2,0.00454739]
[1641469029764,0.78607993,3342.5,3342.2,0.00454739]
[1641469029953,0.78607993,3342.5,3342.1,0.00397896]
[1641469030153,0.74828,3342.5,3342.1,0.00397896]
[1641469030352,1.92655,3342.8,3341.6,0.7482392]
[1641469030553,1.78523268,3342.0,3341.7,0.00625266]
[1641469031051,1.78523268,3342.0,3341.7,0.30625266]
[1641469031251,1.75143268,3342.0,3341.7,0.30625266]
[1641469031453,1.75143268,3342.0,3341.8,0.00568423]
[1641469032994,1.75143268,3342.0,3341.8,0.75381513]
[1641469033493,1.75143268,3342.0,3341.9,0.00511581]
[1641469033891,1.75143268,3342.0,3341.8,0.00568423]
[1641469035429,1.75143268,3342.0,3341.9,0.00215412]
[1641469035833,1.75143268,3342.0,3341.9,0.00726993]
[1641469036531,8.95143268,3342.0,3341.9,0.00726993]
[1641469036731,12.33313358,3342.0,3341.9,0.00726993]
[1641469037232,14.51155358,3342.0,3341.9,0.00726993]
[1641469037437,18.51155358,3342.0,3341.9,0.00726993]
[1641469037930,14.81155358,3342.0,3341.9,0.00726993]
[1641469039202,14.82432813,3342.0,3341.9,0.00726993]
[1641469039402,19.97432813,3342.0,3341.9,0.00726993]
[1641469040001,22.98677532,3342.0,3341.9,0.00726993]
[1641469040200,1.71643153,3340.9,3340.5,1.8015154]
[1641469040400,0.43,3341.1,3340.5,1.8015154]
[1641469040600,0.43,3341.1,3340.6,0.0073895]
[1641469042002,3.3817009,3341.0,3340.6,0.0073895]
[1641469043838,3.3817009,3341.2,3340.6,0.0073895]
[1641469044039,3.3817009,3341.2,3340.6,2.85363758]
[1641469044441,3.3817009,3341.2,3340.7,0.00682108]
[1641469044639,1.50704603,3341.7,3340.7,0.00682108]
[1641469044841,0.00374436,3341.7,3341.4,1.20805175]
[1641469045244,0.00374436,3341.7,3341.5,0.00227369]
[1641469045642,0.00374436,3341.7,3341.6,2.96601505]
[1641469045844,0.00374436,3341.7,3341.6,0.75015277]
[1641469046043,0.00374436,3341.7,3341.6,0.75185804]
[1641469046891,3.38549955,3341.7,3341.6,0.75185804]
[1641469047591,3.38549955,3341.7,3341.6,2.49336979]
[1641469048191,3.38549955,3341.7,3341.6,0.75185804]
[1641469048393,3.38549955,3341.7,3341.6,0.00367224]
[1641469048594,4.35,3341.6,3340.5,2.244853]
[1641469048789,0.0126949,3341.5,3340.5,2.244853]
[1641469048991,0.0126949,3341.5,3340.6,0.00568423]
[1641469049191,0.0126949,3341.5,3340.6,1.74288749]
[1641469049390,3.38549955,3341.7,3340.9,1.4967405]
[1641469049791,3.38549955,3341.7,3341.0,0.00341054]
[1641469050639,3.38175519,3341.4,3341.0,0.00341054]
[1641469051135,3.38175519,3341.4,3341.3,0.7483453]
[1641469051535,3.38175519,3341.4,3341.3,0.75005057]
[1641469054488,3.38175519,3341.4,3341.3,0.00170527]
[1641469054886,3.38175519,3341.4,3341.0,0.00341054]
[1641469055286,3.38175519,3341.4,3341.2,1.4966893]
[1641469055689,3.38175519,3341.4,3341.3,0.00170527]
[1641469056388,3.38175519,3341.4,3341.3,0.00349097]
[1641469057394,3.38175519,3341.6,3341.3,0.00349097]
[1641469057592,5.16671051,3341.6,3341.4,0.7483191]
[1641469057846,5.16671051,3341.6,3341.4,0.74945595]
[1641469058046,1.78495532,3341.6,3341.4,0.74945595]
[1641469058848,0.00374436,3341.7,3341.4,0.74945595]
[1641469059648,0.00374436,3341.7,3341.4,1.00463041]
[1641469059848,0.00374436,3341.7,3341.6,1.60382315]
[1641469060248,0.00374436,3341.7,3341.6,0.748285]
[1641469061595,0.00374436,3341.7,3341.4,0.74953565]
[1641469062790,1.50704603,3341.7,3341.4,0.74953565]
[1641469063293,12.78,3341.6,3339.7,3.29165581]
[1641469063493,0.74863,3340.7,3339.8,2.911339]
[1641469063789,0.74863,3340.7,3339.8,0.00909477]
[1641469063989,0.43,3341.1,3340.3,2.2456985]
[1641469064190,0.43,3341.1,3340.3,1.4970837]
[1641469064390,1.69720537,3340.9,3340.5,1.93530986]
[1641469064588,1.69720537,3340.9,3340.4,0.00568423]
[1641469064790,1.69720537,3340.9,3340.6,0.00454738]
[1641469064992,2.44580537,3340.9,3340.4,0.00568423]
[1641469065191,1.49739,3340.7,3340.4,0.00568423]
[1641469065467,1.92739,3340.7,3340.4,0.00568423]
[1641469065665,1.92739,3340.7,3339.3,0.6265772]
[1641469065666,0.3,3340.6,3339.7,0.0096632]
[1641469065866,0.3,3340.6,3339.4,0.01136847]
[1641469065867,0.43,3340.5,3339.4,0.01136847]
[1641469066071,6.99895,3339.5,3339.4,0.01136847]
[1641469066266,0.43,3339.8,3339.4,0.01136847]
[1641469066867,1.95023967,3339.7,3339.5,0.00184875]
[1641469067267,1.95023967,3339.7,3339.6,0.01023162]
[1641469067666,1.50330167,3340.2,3339.6,0.01023162]
[1641469067870,1.50330167,3340.2,3339.9,6.17]
[1641469068069,1.50330167,3340.2,3339.6,0.01023162]
[1641469068070,0.3,3340.0,3339.6,0.01023162]
[1641469068269,0.43,3339.9,3339.5,0.00184875]
[1641469068467,0.43,3339.8,3339.6,0.01023162]
[1641469068867,1.69995414,3339.7,3339.6,0.01023162]
[1641469069097,0.43,3339.8,3339.6,0.01023162]
[1641469069301,1.0,3340.3,3339.6,0.01023162]
[1641469069302,0.43,3340.0,3339.6,0.01023162]
[1641469069496,0.43,3340.5,3339.6,0.01023162]
[1641469069696,1.50330167,3339.9,3339.6,0.01023162]
[1641469070496,1.50330167,3339.9,3339.7,1.4972245]
[1641469070696,1.50330167,3339.9,3339.6,0.01023162]
[1641469070896,1.50330167,3340.4,3339.8,0.00909477]
[1641469071098,1.99155819,3340.3,3339.8,0.00909477]
[1641469071399,1.79155819,3340.3,3339.8,0.00909477]
[1641469071596,2.79155819,3340.3,3339.8,0.00909477]
[1641469071797,1.50330167,3340.2,3339.8,0.00909477]
[1641469072704,1.50330167,3340.1,3339.8,0.00909477]
[1641469073536,3.38321693,3340.2,3340.0,0.7486132]
[1641469073940,3.38321693,3340.2,3340.1,0.0073895]
[1641469076441,3.38321693,3340.2,3340.0,0.00795793]
[1641469077288,3.38321693,3340.2,3340.1,0.00177399]
[1641469077688,3.38321693,3340.2,3340.1,0.00916349]
[1641469077890,3.68321693,3340.2,3340.1,0.00916349]
[1641469078091,11.68321693,3340.2,3340.1,0.00916349]
[1641469078289,11.98321693,3340.2,3340.1,0.00916349]
[1641469078691,3.38321693,3340.2,3340.1,0.00916349]
[1641469078891,3.68321693,3340.2,3340.1,0.00916349]
[1641469079098,3.38321693,3340.2,3340.1,0.00916349]
[1641469079894,4.13200693,3340.2,3340.1,0.00916349]
[1641469080091,12.53200693,3340.2,3340.1,0.00916349]
[1641469080363,12.2,3340.1,3339.3,0.6265772]
[1641469080563,0.74896,3339.7,3339.3,0.6265772]
[1641469080783,0.43,3339.6,3339.4,0.00397897]
[1641469080963,0.73,3339.6,3339.4,0.00397897]
[1641469081560,1.63226727,3339.5,3339.4,0.00397897]
[1641469081765,2.06226727,3339.5,3339.4,0.00397897]
[1641469082164,5.4454842,3339.5,3339.4,0.00397897]
[1641469083966,2.06226727,3339.5,3339.4,0.00397897]
[1641469085090,6.46226727,3339.5,3339.4,0.00397897]
[1641469085391,6.46226727,3339.5,3339.3,5.617e-05]
[1641469085392,6.32804,3339.5,3339.3,5.617e-05]
[1641469085593,7.13264,3339.5,3339.3,5.617e-05]
[1641469085789,10.5165089,3339.5,3339.3,5.617e-05]
[1641469086591,12.35,3339.3,3338.1,0.04725076]
[1641469086793,0.74921,3339.0,3338.1,0.04725076]
[1641469086994,0.74921,3339.0,3338.2,0.00682108]
[1641469086995,0.43,3338.9,3338.2,0.00682108]
[1641469087591,0.73,3338.9,3337.8,0.00909477]
[1641469087858,0.74925,3338.4,3337.8,0.00909477]
[1641469088046,0.74925,3338.4,3338.3,0.00180123]
[1641469088047,2.54788,3338.4,3338.3,0.00180123]
[1641469088342,2.97788,3338.4,3338.3,0.00180123]
[1641469088541,6.1891398,3338.4,3338.3,0.00805388]
[1641469088942,15.7891398,3338.4,3338.3,0.00805388]
[1641469089346,15.7891398,3338.4,3338.3,5.388e-05]
[1641469089554,15.7891398,3338.4,3337.5,2.693751]
[1641469089555,13.09946,3337.6,3337.5,2.693751]
[1641469089746,3.00167268,3337.6,3337.5,2.693751]
[1641469090149,3.30167268,3337.6,3337.5,2.693751]
[1641469090547,4.30167268,3337.6,3337.5,2.693751]
[1641469090746,3.30167268,3337.6,3337.5,2.693751]
[1641469091148,4.30167268,3337.6,3337.5,2.693751]
[1641469091596,16.65167268,3337.6,3337.5,5.1e-05]
[1641469091793,4.30167268,3337.6,3337.5,5.1e-05]
[1641469092198,5.19657268,3337.6,3337.5,5.1e-05]
[1641469092396,5.19657268,3337.6,3335.0,0.44967]
[1641469092397,0.8949,3337.4,3335.6,0.89078285]
[1641469092697,0.8949,3336.5,3335.7,0.01477901]
[1641469093298,0.8949,3336.3,3335.7,0.01477901]
[1641469093501,0.8949,3335.8,3335.7,0.01477901]
[1641469094703,2.82656245,3335.8,3335.7,0.01477901]
[1641469095547,3.25656245,3335.8,3335.7,0.01477901]
[1641469098154,1.3249,3335.8,3335.7,0.01477901]
[1641469098355,0.8949,3335.8,3335.7,1.25063514]
[1641469098557,0.43,3337.0,3335.8,12.1]
[1641469098853,0.43,3337.0,3335.7,1.25266257]
[1641469099117,0.43,3337.0,3336.7,2.2788603]
[1641469099514,0.43,3337.0,3336.8,0.00852636]
[1641469101913,1.19379898,3338.0,3336.8,1.34695303]
[1641469102114,0.43,3337.9,3336.8,1.34695303]
[1641469102312,7.36156541,3338.1,3336.9,0.00795793]
[1641469102516,0.43,3338.0,3336.9,0.00795793]
[1641469102943,2.26360455,3337.8,3336.9,0.00795793]
[1641469103352,2.26360455,3337.8,3337.3,2.00232654]
[1641469103745,0.8985,3338.1,3337.4,0.00511582]
[1641469103947,0.43,3338.3,3337.4,0.00511582]
[1641469103948,1.50330167,3338.6,3338.0,1.148975]
[1641469104144,1.50330167,3338.6,3337.7,0.01244758]
[1641469104343,1.50330167,3338.6,3338.1,0.00113685]
[1641469104545,1.50330167,3338.6,3337.8,0.75179562]
[1641469104742,3.60317356,3338.6,3338.2,2.13904324]
[1641469104943,2.09987189,3338.6,3337.9,0.0022737]
[1641469105343,2.09987189,3338.6,3338.0,1.25534986]
[1641469105744,2.09987189,3338.6,3338.1,0.00113685]
[1641469106595,2.09987189,3338.6,3337.8,0.00284212]
[1641469106794,2.09987189,3338.6,3337.6,0.00397897]
[1641469106998,2.09987189,3338.6,3337.9,2.11085542]
[1641469107195,2.09987189,3338.6,3338.0,2.77548294]
[1641469107392,2.09987189,3338.6,3338.0,2.77718821]
[1641469107592,2.09987189,3338.6,3338.1,0.00113685]
[1641469107996,2.09987189,3338.6,3338.0,0.00170527]
[1641469108194,2.09987189,3338.6,3337.3,0.00568424]
[1641469108393,2.09987189,3338.6,3337.4,0.00511582]
[1641469108595,2.09987189,3338.6,3337.3,0.00568424]
[1641469108596,3.38531459,3338.5,3337.3,0.00568424]
[1641469108799,4.02815183,3338.4,3337.3,0.00568424]
[1641469108996,5.377,3338.3,3337.3,0.00568424]
[1641469109196,5.377,3338.3,3336.2,3.8162]
[1641469109197,0.74935,3338.0,3336.6,0.0096632]
[1641469109399,0.43,3337.9,3337.5,0.00168346]
[1641469109597,0.7494,3337.7,3337.5,0.00168346]
[1641469109797,11.58,3337.6,3337.5,0.00168346]
[1641469110013,13.40579527,3337.6,3337.5,0.00168346]
[1641469110200,13.40579527,3337.6,3337.5,0.00623085]
[1641469110649,2.25579527,3337.6,3337.5,0.00274671]
[1641469111052,2.25579527,3337.6,3336.7,0.0072941]
[1641469111249,1.87464778,3337.0,3336.7,0.0072941]
[1641469111649,1.87464778,3337.0,3336.6,0.00786252]
[1641469112150,1.87464778,3337.0,3336.0,0.01127306]
[1641469112350,1.87464778,3337.0,3336.4,1.38129568]
[1641469112851,0.43,3337.3,3336.5,0.00843095]
[1641469113350,0.43,3337.3,3336.0,0.76062936]
[1641469113553,0.43,3337.3,3336.0,0.01127306]
[1641469113751,2.10127852,3337.1,3336.6,2.21080677]
[1641469114090,0.03442737,3337.2,3336.7,0.0072941]
[1641469114291,0.43,3337.3,3336.7,0.0072941]
[1641469115494,1.21190416,3337.8,3336.7,0.0072941]
[1641469115696,1.73238862,3337.7,3336.7,0.0072941]
[1641469116092,1.73238862,3337.7,3336.5,0.00843095]
[1641469116293,1.73238862,3337.7,3336.4,0.00899937]
[1641469116493,1.73238862,3337.7,3336.4,1.00899937]
[1641469116693,1.73238862,3337.7,3337.1,2.23026975]
[1641469117093,1.73238862,3337.7,3337.2,0.00445198]
[1641469117692,1.73238862,3337.7,3336.5,0.00843095]
[1641469118146,1.73238862,3337.7,3336.4,0.00899937]
[1641469118350,1.80787435,3337.1,3336.7,1.91584895]
[1641469118547,0.3,3337.7,3336.7,1.91584895]
[1641469118749,1.49861,3338.0,3336.7,1.91584895]
[1641469118750,0.3,3337.9,3336.8,0.00672568]
[1641469119549,0.3,3337.9,3337.4,2.17178775]
[1641469119550,2.38774445,3337.9,3337.4,2.17178775]